[Event "Titled Tuesday Blitz May 2 Early 2023"]
[White "Loiacono, Antonio"]
[Black "Seo, Jung Min"]
[WhiteFideId "895415"]
[BlackFideId "1734687"]
[WhiteElo "2257"]
[BlackElo "2468"]
[Result "0-1"]
[Round "08"]
[TimeControl "180+2"]
[Date "2023.05.02"]
[WhiteClock "0:00:01"]
[BlackClock "0:00:13"]

1. e4 {[%clk 0:03:00]}  e5 {[%clk 0:02:59]} 2. Nf3 {[%clk 0:03:00]}  Nc6 {[%clk 0:03:00]} 3. Nc3 {[%clk 0:03:01]}  Nf6 {[%clk 0:02:58]} 4. Bb5 {[%clk 0:03:01]}  Bd6 {[%clk 0:02:56]} 5. d3 {[%clk 0:02:59]}  O-O {[%clk 0:02:56]} 6. O-O {[%clk 0:02:59]}  Re8 {[%clk 0:02:53]} 7. Ne2 {[%clk 0:02:57]}  a6 {[%clk 0:02:51]} 8. Bxc6 {[%clk 0:02:57]}  dxc6 {[%clk 0:02:51]} 9. h3 {[%clk 0:02:57]}  Nd7 {[%clk 0:02:47]} 10. Nd2 {[%clk 0:02:55]}  Nf8 {[%clk 0:02:44]} 11. Nc4 {[%clk 0:02:54]}  Be6 {[%clk 0:02:44]} 12. Nxd6 {[%clk 0:02:54]}  cxd6 {[%clk 0:02:44]} 13. d4 {[%clk 0:02:52]}  Ng6 {[%clk 0:02:39]} 14. dxe5 {[%clk 0:02:45]}  dxe5 {[%clk 0:02:39]} 15. Nc3 {[%clk 0:02:44]}  Qe7 {[%clk 0:02:38]} 16. Qe2 {[%clk 0:02:41]}  Rad8 {[%clk 0:02:37]} 17. Be3 {[%clk 0:02:41]}  Qb4 {[%clk 0:02:37]} 18. a3 {[%clk 0:02:32]}  Qxb2 {[%clk 0:02:34]} 19. Na4 {[%clk 0:02:23]}  Qb5 {[%clk 0:02:32]} 20. Qxb5 {[%clk 0:02:21]}  axb5 {[%clk 0:02:21]} 21. Nc5 {[%clk 0:02:21]}  Bc8 {[%clk 0:02:20]} 22. Rfb1 {[%clk 0:02:10]}  Nf4 {[%clk 0:02:03]} 23. a4 {[%clk 0:01:46]}  b6 {[%clk 0:01:55]} 24. Nd3 {[%clk 0:01:39]}  Nxd3 {[%clk 0:01:51]} 25. cxd3 {[%clk 0:01:39]}  Rxd3 {[%clk 0:01:50]} 26. axb5 {[%clk 0:01:37]}  c5 {[%clk 0:01:46]} 27. Ra8 {[%clk 0:01:30]}  f6 {[%clk 0:01:37]} 28. Rb8 {[%clk 0:01:27]}  Rd6 {[%clk 0:01:36]} 29. Ra1 {[%clk 0:01:23]}  Bd7 {[%clk 0:01:36]} 30. Rb7 {[%clk 0:01:20]}  Kh8 {[%clk 0:00:57]} 31. Ra6 {[%clk 0:00:54]}  Bxb5 {[%clk 0:00:55]} 32. Raxb6 {[%clk 0:00:38]}  Rxb6 {[%clk 0:00:54]} 33. Rxb6 {[%clk 0:00:37]}  Bd3 {[%clk 0:00:54]} 34. Bxc5 {[%clk 0:00:36]}  Bxe4 {[%clk 0:00:54]} 35. Bd6 {[%clk 0:00:33]}  Bf5 {[%clk 0:00:54]} 36. Rb8 {[%clk 0:00:32]}  Bc8 {[%clk 0:00:54]} 37. f4 {[%clk 0:00:21]}  exf4 {[%clk 0:00:51]} 38. Bxf4 {[%clk 0:00:22]}  Kg8 {[%clk 0:00:51]} 39. Kh2 {[%clk 0:00:22]}  g5 {[%clk 0:00:50]} 40. Bg3 {[%clk 0:00:21]}  Kf7 {[%clk 0:00:45]} 41. Bc7 {[%clk 0:00:18]}  Ke6 {[%clk 0:00:44]} 42. Bg3 {[%clk 0:00:18]}  Kd7 {[%clk 0:00:43]} 43. Rb6 {[%clk 0:00:16]}  f5 {[%clk 0:00:42]} 44. Rh6 {[%clk 0:00:11]}  Re7 {[%clk 0:00:37]} 45. h4 {[%clk 0:00:11]}  f4 {[%clk 0:00:33]} 46. Be1 {[%clk 0:00:09]}  g4 {[%clk 0:00:33]} 47. Bd2 {[%clk 0:00:09]}  g3+ {[%clk 0:00:23]} 48. Kg1 {[%clk 0:00:08]}  Re2 {[%clk 0:00:23]} 49. Rxh7+ {[%clk 0:00:06]}  Kc6 {[%clk 0:00:21]} 50. Rh6+ {[%clk 0:00:04]}  Kd5 {[%clk 0:00:18]} 51. Ba5 {[%clk 0:00:02]}  Ra2 {[%clk 0:00:15]} 52. Bc3 {[%clk 0:00:01]}  Rc2 {[%clk 0:00:13]} 0-1


[Site "https://www.chess.com"]

[Event "Titled Tuesday Blitz May 2 Early 2023"]
[White "Papasimakopoulos, Alexandros"]
[Black "Hnydiuk, Aleksander"]
[WhiteFideId "4244125"]
[BlackFideId "1109057"]
[WhiteElo "2359"]
[BlackElo "2374"]
[Result "0-1"]
[Round "08"]
[TimeControl "180+2"]
[Date "2023.05.02"]
[WhiteClock "0:00:10"]
[BlackClock "0:00:03"]

1. d4 {[%clk 0:03:00]}  Nf6 {[%clk 0:02:57]} 2. Kd2 {[%clk 0:03:00]}  d5 {[%clk 0:02:53]} 3. Qe1 {[%clk 0:03:01]}  c5 {[%clk 0:02:53]} 4. e3 {[%clk 0:02:59]}  Nc6 {[%clk 0:02:53]} 5. c3 {[%clk 0:02:58]}  e5 {[%clk 0:02:53]} 6. dxe5 {[%clk 0:02:56]}  Nxe5 {[%clk 0:02:53]} 7. Kd1 {[%clk 0:02:57]}  Be7 {[%clk 0:02:49]} 8. Nf3 {[%clk 0:02:57]}  Nc6 {[%clk 0:02:31]} 9. Bd3 {[%clk 0:02:51]}  O-O {[%clk 0:02:30]} 10. Nbd2 {[%clk 0:02:50]}  a6 {[%clk 0:02:11]} 11. b3 {[%clk 0:02:50]}  b5 {[%clk 0:02:10]} 12. Bb2 {[%clk 0:02:48]}  Rb8 {[%clk 0:01:53]} 13. Qe2 {[%clk 0:02:35]}  Re8 {[%clk 0:01:47]} 14. h3 {[%clk 0:02:33]}  Bf8 {[%clk 0:01:46]} 15. Bc2 {[%clk 0:02:21]}  a5 {[%clk 0:01:42]} 16. a3 {[%clk 0:02:07]}  Qb6 {[%clk 0:01:36]} 17. g4 {[%clk 0:02:00]}  Ba6 {[%clk 0:01:35]} 18. Qe1 {[%clk 0:01:47]}  Rbd8 {[%clk 0:01:15]} 19. Kc1 {[%clk 0:01:45]}  Ne4 {[%clk 0:01:10]} 20. Nxe4 {[%clk 0:01:36]}  dxe4 {[%clk 0:01:10]} 21. Nd2 {[%clk 0:01:36]}  Ne5 {[%clk 0:00:52]} 22. Bxe4 {[%clk 0:01:07]}  Bb7 {[%clk 0:00:43]} 23. Bc2 {[%clk 0:00:59]}  Rxd2 {[%clk 0:00:36]} 24. Qxd2 {[%clk 0:00:49]}  Bxh1 {[%clk 0:00:36]} 25. f4 {[%clk 0:00:45]}  Nc6 {[%clk 0:00:27]} 26. Kb1 {[%clk 0:00:33]}  c4 {[%clk 0:00:27]} 27. Bc1 {[%clk 0:00:27]}  Be4 {[%clk 0:00:22]} 28. Bxe4 {[%clk 0:00:20]}  Rxe4 {[%clk 0:00:23]} 29. b4 {[%clk 0:00:20]}  Re8 {[%clk 0:00:20]} 30. Ra2 {[%clk 0:00:18]}  Rd8 {[%clk 0:00:19]} 31. Qg2 {[%clk 0:00:19]}  Rd3 {[%clk 0:00:18]} 32. Rc2 {[%clk 0:00:18]}  Qc7 {[%clk 0:00:17]} 33. Kb2 {[%clk 0:00:18]}  axb4 {[%clk 0:00:17]} 34. axb4 {[%clk 0:00:18]}  Qd7 {[%clk 0:00:15]} 35. f5 {[%clk 0:00:17]}  Ne7 {[%clk 0:00:14]} 36. e4 {[%clk 0:00:16]}  Nc6 {[%clk 0:00:13]} 37. Bf4 {[%clk 0:00:15]}  Bd6 {[%clk 0:00:12]} 38. Qh2 {[%clk 0:00:15]}  Bxf4 {[%clk 0:00:11]} 39. Qxf4 {[%clk 0:00:16]}  Qd6 {[%clk 0:00:11]} 40. Qf2 {[%clk 0:00:15]}  Ne5 {[%clk 0:00:07]} 41. Qa7 {[%clk 0:00:14]}  h6 {[%clk 0:00:07]} 42. h4 {[%clk 0:00:13]}  Nxg4 {[%clk 0:00:05]} 43. e5 {[%clk 0:00:13]}  Nxe5 {[%clk 0:00:05]} 44. h5 {[%clk 0:00:13]}  Kh7 {[%clk 0:00:05]} 45. Qa8 {[%clk 0:00:13]}  Rd2 {[%clk 0:00:04]} 46. Qe4 {[%clk 0:00:13]}  Rxc2+ {[%clk 0:00:03]} 47. Kb1 {[%clk 0:00:10]}  Qd1# {[%clk 0:00:03]} 0-1


[Site "https://www.chess.com"]

[Event "Titled Tuesday Blitz May 2 Early 2023"]
[White "Demin, Vladimir"]
[Black "Molina, Roberto Junio Brito"]
[WhiteFideId "4167457"]
[BlackFideId "2109450"]
[WhiteElo "2430"]
[BlackElo "2376"]
[Result "0-1"]
[Round "08"]
[TimeControl "180+2"]
[Date "2023.05.02"]
[WhiteClock "0:00:01"]
[BlackClock "0:00:12"]

1. d4 {[%clk 0:02:55]}  d5 {[%clk 0:02:59]} 2. Nc3 {[%clk 0:02:55]}  Nf6 {[%clk 0:02:58]} 3. Bf4 {[%clk 0:02:55]}  a6 {[%clk 0:02:55]} 4. e3 {[%clk 0:02:55]}  b5 {[%clk 0:02:52]} 5. Nf3 {[%clk 0:02:50]}  e6 {[%clk 0:02:49]} 6. Ne5 {[%clk 0:02:50]}  Bb7 {[%clk 0:02:41]} 7. g4 {[%clk 0:02:47]}  Bb4 {[%clk 0:02:21]} 8. Bg2 {[%clk 0:02:45]}  Ne4 {[%clk 0:02:06]} 9. Bxe4 {[%clk 0:02:44]}  dxe4 {[%clk 0:02:07]} 10. O-O {[%clk 0:02:41]}  O-O {[%clk 0:02:03]} 11. g5 {[%clk 0:02:27]}  Nd7 {[%clk 0:01:50]} 12. Nxd7 {[%clk 0:02:23]}  Qxd7 {[%clk 0:01:51]} 13. Ne2 {[%clk 0:02:22]}  Bd6 {[%clk 0:01:42]} 14. Bxd6 {[%clk 0:02:22]}  cxd6 {[%clk 0:01:41]} 15. Nf4 {[%clk 0:02:20]}  Qe7 {[%clk 0:01:40]} 16. Qg4 {[%clk 0:02:17]}  Rac8 {[%clk 0:01:37]} 17. c3 {[%clk 0:02:17]}  Rc7 {[%clk 0:01:31]} 18. a3 {[%clk 0:02:10]}  f5 {[%clk 0:01:23]} 19. gxf6 {[%clk 0:02:07]}  Rxf6 {[%clk 0:01:23]} 20. Kh1 {[%clk 0:02:05]}  e5 {[%clk 0:01:17]} 21. dxe5 {[%clk 0:01:54]}  dxe5 {[%clk 0:01:18]} 22. Nh5 {[%clk 0:01:40]}  Rg6 {[%clk 0:01:15]} 23. Qe2 {[%clk 0:01:27]}  Qh4 {[%clk 0:01:08]} 24. Rg1 {[%clk 0:00:23]}  Rh6 {[%clk 0:01:01]} 25. Rg2 {[%clk 0:00:16]}  Qxh5 {[%clk 0:00:58]} 26. Qd2 {[%clk 0:00:16]}  Qe8 {[%clk 0:00:50]} 27. Rag1 {[%clk 0:00:15]}  Rf6 {[%clk 0:00:47]} 28. a4 {[%clk 0:00:10]}  bxa4 {[%clk 0:00:44]} 29. Qc2 {[%clk 0:00:09]}  g6 {[%clk 0:00:43]} 30. Qb1 {[%clk 0:00:06]}  Kg7 {[%clk 0:00:41]} 31. Qa2 {[%clk 0:00:06]}  Bc6 {[%clk 0:00:39]} 32. Qc4 {[%clk 0:00:06]}  a5 {[%clk 0:00:32]} 33. Qc5 {[%clk 0:00:05]}  Rcf7 {[%clk 0:00:28]} 34. Qxa5 {[%clk 0:00:03]}  Rxf2 {[%clk 0:00:26]} 35. Rg5 {[%clk 0:00:03]}  R2f5 {[%clk 0:00:24]} 36. R5g3 {[%clk 0:00:02]}  Qe6 {[%clk 0:00:20]} 37. Qc5 {[%clk 0:00:02]}  Qd5 {[%clk 0:00:20]} 38. Qb6 {[%clk 0:00:02]}  R5f6 {[%clk 0:00:19]} 39. Qa6 {[%clk 0:00:02]}  Qd3 {[%clk 0:00:19]} 40. Qa5 {[%clk 0:00:01]}  Rf5 {[%clk 0:00:15]} 41. Qc5 {[%clk 0:00:01]}  Qd5 {[%clk 0:00:15]} 42. Qb6 {[%clk 0:00:01]}  Rf1 {[%clk 0:00:15]} 43. Qa6 {[%clk 0:00:01]}  Rxg1+ {[%clk 0:00:15]} 44. Rxg1 {[%clk 0:00:01]}  Bb5 {[%clk 0:00:15]} 45. Qb6 {[%clk 0:00:01]}  Be2 {[%clk 0:00:15]} 46. Kg2 {[%clk 0:00:01]}  Qd7 {[%clk 0:00:12]} 47. Kg3 {[%clk 0:00:01]}  Qg4# {[%clk 0:00:12]} 0-1


[Site "https://www.chess.com"]

[Event "Titled Tuesday Blitz May 2 Early 2023"]
[White "Gabrielian, Artur"]
[Black "Karamsetty, Jeevan"]
[WhiteFideId "4131002"]
[BlackFideId "2025337"]
[WhiteElo "2432"]
[BlackElo "2111"]
[Result "1-0"]
[Round "08"]
[TimeControl "180+2"]
[Date "2023.05.02"]
[WhiteClock "0:01:25"]
[BlackClock "0:00:09"]

1. d4 {[%clk 0:03:00]}  g6 {[%clk 0:03:00]} 2. c4 {[%clk 0:02:58]}  Bg7 {[%clk 0:02:58]} 3. Nc3 {[%clk 0:02:57]}  d6 {[%clk 0:02:59]} 4. e4 {[%clk 0:02:56]}  e5 {[%clk 0:02:59]} 5. d5 {[%clk 0:02:56]}  a5 {[%clk 0:02:59]} 6. Bd3 {[%clk 0:02:53]}  Na6 {[%clk 0:02:59]} 7. h3 {[%clk 0:02:52]}  Bd7 {[%clk 0:02:46]} 8. Nge2 {[%clk 0:02:49]}  Qh4 {[%clk 0:02:45]} 9. g3 {[%clk 0:02:47]}  Qe7 {[%clk 0:02:38]} 10. Be3 {[%clk 0:02:43]}  f5 {[%clk 0:02:33]} 11. Qd2 {[%clk 0:02:27]}  Nf6 {[%clk 0:02:28]} 12. f3 {[%clk 0:02:22]}  O-O {[%clk 0:02:22]} 13. g4 {[%clk 0:02:18]}  f4 {[%clk 0:02:12]} 14. Bf2 {[%clk 0:02:17]}  g5 {[%clk 0:02:10]} 15. h4 {[%clk 0:02:16]}  h6 {[%clk 0:02:10]} 16. O-O-O {[%clk 0:02:09]}  c6 {[%clk 0:01:50]} 17. Kb1 {[%clk 0:02:06]}  Nb4 {[%clk 0:01:42]} 18. a3 {[%clk 0:02:02]}  Nxd3 {[%clk 0:01:41]} 19. Qxd3 {[%clk 0:02:03]}  cxd5 {[%clk 0:01:40]} 20. cxd5 {[%clk 0:01:58]}  b5 {[%clk 0:01:29]} 21. Nxb5 {[%clk 0:01:54]}  Rab8 {[%clk 0:01:28]} 22. Nec3 {[%clk 0:01:48]}  Rfc8 {[%clk 0:01:26]} 23. Rc1 {[%clk 0:01:44]}  Ne8 {[%clk 0:01:10]} 24. hxg5 {[%clk 0:01:42]}  hxg5 {[%clk 0:01:10]} 25. a4 {[%clk 0:01:42]}  Nc7 {[%clk 0:01:06]} 26. Nxc7 {[%clk 0:01:42]}  Rxc7 {[%clk 0:01:07]} 27. Nb5 {[%clk 0:01:36]}  Rcb7 {[%clk 0:00:57]} 28. Rc6 {[%clk 0:01:34]}  Bxc6 {[%clk 0:00:40]} 29. dxc6 {[%clk 0:01:32]}  Rc7 {[%clk 0:00:33]} 30. Qd5+ {[%clk 0:01:30]}  Kf8 {[%clk 0:00:30]} 31. Rh7 {[%clk 0:01:27]}  Rcc8 {[%clk 0:00:11]} 32. Nxd6 {[%clk 0:01:26]}  Rd8 {[%clk 0:00:09]} 33. Bc5 {[%clk 0:01:25]} 1-0


[Site "https://www.chess.com"]

[Event "Titled Tuesday Blitz May 2 Early 2023"]
[White "Jaskolka, Tomasz"]
[Black "Vakhlamov, Igor L."]
[WhiteFideId "1170791"]
[BlackFideId "24126748"]
[WhiteElo "2155"]
[BlackElo "2400"]
[Result "1/2-1/2"]
[Round "08"]
[TimeControl "180+2"]
[Date "2023.05.02"]
[WhiteClock "0:00:02"]
[BlackClock "0:00:25"]

1. d4 {[%clk 0:03:00]}  d5 {[%clk 0:02:59]} 2. Bf4 {[%clk 0:03:00]}  Nf6 {[%clk 0:03:00]} 3. e3 {[%clk 0:03:00]}  Bf5 {[%clk 0:03:00]} 4. c4 {[%clk 0:03:00]}  e6 {[%clk 0:03:00]} 5. Nc3 {[%clk 0:03:01]}  Bb4 {[%clk 0:03:00]} 6. Qb3 {[%clk 0:02:58]}  Nc6 {[%clk 0:03:00]} 7. Nf3 {[%clk 0:02:58]}  O-O {[%clk 0:03:01]} 8. Be2 {[%clk 0:02:57]}  Bxc3+ {[%clk 0:02:58]} 9. bxc3 {[%clk 0:02:57]}  Na5 {[%clk 0:02:58]} 10. Qa4 {[%clk 0:02:56]}  c6 {[%clk 0:02:55]} 11. c5 {[%clk 0:02:45]}  b5 {[%clk 0:02:51]} 12. Qb4 {[%clk 0:02:38]}  Nc4 {[%clk 0:02:43]} 13. Ne5 {[%clk 0:02:22]}  a5 {[%clk 0:02:40]} 14. Qb3 {[%clk 0:02:18]}  Qc8 {[%clk 0:02:35]} 15. f3 {[%clk 0:02:01]}  Nh5 {[%clk 0:02:26]} 16. g4 {[%clk 0:01:45]}  Nxf4 {[%clk 0:02:24]} 17. exf4 {[%clk 0:01:44]}  Bg6 {[%clk 0:02:20]} 18. Bxc4 {[%clk 0:01:39]}  bxc4 {[%clk 0:02:21]} 19. Qa4 {[%clk 0:01:39]}  Ra6 {[%clk 0:02:15]} 20. O-O {[%clk 0:01:34]}  f6 {[%clk 0:02:12]} 21. Nxg6 {[%clk 0:01:34]}  hxg6 {[%clk 0:02:13]} 22. Rab1 {[%clk 0:01:31]}  Qc7 {[%clk 0:02:13]} 23. Qc2 {[%clk 0:01:15]}  f5 {[%clk 0:01:56]} 24. Qd2 {[%clk 0:01:12]}  Raa8 {[%clk 0:01:51]} 25. Rb6 {[%clk 0:01:07]}  fxg4 {[%clk 0:01:44]} 26. fxg4 {[%clk 0:01:07]}  Rf6 {[%clk 0:01:45]} 27. Kg2 {[%clk 0:00:58]}  Raf8 {[%clk 0:01:44]} 28. Qe3 {[%clk 0:00:44]}  a4 {[%clk 0:00:58]} 29. h4 {[%clk 0:00:33]}  Rxf4 {[%clk 0:00:49]} 30. Rxf4 {[%clk 0:00:33]}  Rxf4 {[%clk 0:00:50]} 31. Qxe6+ {[%clk 0:00:28]}  Kh7 {[%clk 0:00:48]} 32. Rxc6 {[%clk 0:00:25]}  Rxg4+ {[%clk 0:00:36]} 33. Qxg4 {[%clk 0:00:21]}  Qxc6 {[%clk 0:00:37]} 34. Qf4 {[%clk 0:00:16]}  a3 {[%clk 0:00:36]} 35. Qd6 {[%clk 0:00:14]}  Qb5 {[%clk 0:00:36]} 36. c6 {[%clk 0:00:13]}  Qb2+ {[%clk 0:00:36]} 37. Kf1 {[%clk 0:00:07]}  Qb1+ {[%clk 0:00:37]} 38. Ke2 {[%clk 0:00:07]}  Qxa2+ {[%clk 0:00:37]} 39. Ke3 {[%clk 0:00:07]}  Qb2 {[%clk 0:00:33]} 40. c7 {[%clk 0:00:06]}  Qxc3+ {[%clk 0:00:33]} 41. Ke2 {[%clk 0:00:06]}  Qd3+ {[%clk 0:00:30]} 42. Kf2 {[%clk 0:00:06]}  Qxd4+ {[%clk 0:00:30]} 43. Kg2 {[%clk 0:00:06]}  Qe4+ {[%clk 0:00:29]} 44. Kf2 {[%clk 0:00:06]}  Qxh4+ {[%clk 0:00:29]} 45. Kf3 {[%clk 0:00:04]}  Qe4+ {[%clk 0:00:29]} 46. Kf2 {[%clk 0:00:05]}  Qf5+ {[%clk 0:00:27]} 47. Kg2 {[%clk 0:00:05]}  a2 {[%clk 0:00:27]} 48. Qa6 {[%clk 0:00:04]}  Qg4+ {[%clk 0:00:25]} 49. Kf2 {[%clk 0:00:03]}  Qf4+ {[%clk 0:00:25]} 50. Kg2 {[%clk 0:00:04]}  Qxc7 {[%clk 0:00:25]} 51. Qxa2 {[%clk 0:00:04]}  Qf4 {[%clk 0:00:25]} 52. Kh3 {[%clk 0:00:04]}  Qf5+ {[%clk 0:00:24]} 53. Kg2 {[%clk 0:00:04]}  c3 {[%clk 0:00:24]} 54. Qf2 {[%clk 0:00:03]}  Qxf2+ {[%clk 0:00:24]} 55. Kh1 {[%clk 0:00:02]}  c2 {[%clk 0:00:25]} 1/2-1/2


[Site "https://www.chess.com"]

[Event "Titled Tuesday Blitz May 2 Early 2023"]
[White "Preotu, Razvan"]
[Black "Karttunen, Mika"]
[WhiteFideId "2613280"]
[BlackFideId "502081"]
[WhiteElo "2407"]
[BlackElo "2396"]
[Result "0-1"]
[Round "08"]
[TimeControl "180+2"]
[Date "2023.05.02"]
[WhiteClock "0:00:01"]
[BlackClock "0:00:15"]

1. e4 {[%clk 0:03:00]}  c5 {[%clk 0:02:59]} 2. Nf3 {[%clk 0:03:00]}  d6 {[%clk 0:03:00]} 3. d4 {[%clk 0:03:00]}  cxd4 {[%clk 0:03:01]} 4. Nxd4 {[%clk 0:03:00]}  Nf6 {[%clk 0:03:01]} 5. Nc3 {[%clk 0:03:01]}  a6 {[%clk 0:03:01]} 6. Be3 {[%clk 0:03:00]}  e5 {[%clk 0:03:01]} 7. Nb3 {[%clk 0:03:00]}  Be6 {[%clk 0:03:01]} 8. h3 {[%clk 0:02:47]}  Be7 {[%clk 0:02:58]} 9. Qf3 {[%clk 0:02:46]}  Nbd7 {[%clk 0:02:50]} 10. g4 {[%clk 0:02:38]}  h6 {[%clk 0:02:34]} 11. O-O-O {[%clk 0:02:30]}  Rc8 {[%clk 0:02:33]} 12. Nd5 {[%clk 0:02:30]}  Bxd5 {[%clk 0:02:30]} 13. exd5 {[%clk 0:02:31]}  e4 {[%clk 0:01:57]} 14. Qg2 {[%clk 0:02:12]}  Qc7 {[%clk 0:01:55]} 15. Nd4 {[%clk 0:01:20]}  Ne5 {[%clk 0:01:39]} 16. Kb1 {[%clk 0:01:15]}  Nf3 {[%clk 0:01:22]} 17. c3 {[%clk 0:01:07]}  Nxd5 {[%clk 0:01:17]} 18. Bc1 {[%clk 0:00:46]}  Bf6 {[%clk 0:01:08]} 19. Nb5 {[%clk 0:00:16]}  Nxc3+ {[%clk 0:00:44]} 20. Nxc3 {[%clk 0:00:15]}  Bxc3 {[%clk 0:00:44]} 21. bxc3 {[%clk 0:00:10]}  Qxc3 {[%clk 0:00:44]} 22. Bd3 {[%clk 0:00:10]}  Rc6 {[%clk 0:00:15]} 23. Bb2 {[%clk 0:00:01]}  Rb6 {[%clk 0:00:15]} 0-1


[Site "https://www.chess.com"]

[Event "Titled Tuesday Blitz May 2 Early 2023"]
[White "Garv Gaur"]
[Black "Lavrik, Dmitry"]
[WhiteFideId "45030839"]
[BlackFideId "24113190"]
[WhiteElo "2068"]
[BlackElo "2345"]
[Result "1-0"]
[Round "08"]
[TimeControl "180+2"]
[Date "2023.05.02"]
[WhiteClock "0:00:36"]
[BlackClock "0:00:20"]

1. Nf3 {[%clk 0:03:00]}  d5 {[%clk 0:02:43]} 2. d4 {[%clk 0:02:58]}  Nf6 {[%clk 0:02:40]} 3. c4 {[%clk 0:02:58]}  c6 {[%clk 0:02:39]} 4. g3 {[%clk 0:02:56]}  dxc4 {[%clk 0:02:38]} 5. Bg2 {[%clk 0:02:55]}  e6 {[%clk 0:02:38]} 6. Ne5 {[%clk 0:02:54]}  Nbd7 {[%clk 0:02:34]} 7. Nxc4 {[%clk 0:02:54]}  Nb6 {[%clk 0:02:27]} 8. Ne5 {[%clk 0:02:54]}  c5 {[%clk 0:02:26]} 9. Nf3 {[%clk 0:02:23]}  cxd4 {[%clk 0:02:25]} 10. Qxd4 {[%clk 0:02:24]}  Qxd4 {[%clk 0:02:07]} 11. Nxd4 {[%clk 0:02:25]}  Bb4+ {[%clk 0:02:07]} 12. Bd2 {[%clk 0:02:23]}  Bxd2+ {[%clk 0:02:06]} 13. Nxd2 {[%clk 0:02:24]}  Ke7 {[%clk 0:02:06]} 14. N2f3 {[%clk 0:02:17]}  Bd7 {[%clk 0:02:03]} 15. Ne5 {[%clk 0:02:16]}  Nbd5 {[%clk 0:02:01]} 16. O-O {[%clk 0:02:14]}  Rhc8 {[%clk 0:01:56]} 17. Rfc1 {[%clk 0:02:12]}  Be8 {[%clk 0:01:56]} 18. a3 {[%clk 0:02:10]}  Kd6 {[%clk 0:01:42]} 19. Nd3 {[%clk 0:02:08]}  Ke7 {[%clk 0:01:29]} 20. Kf1 {[%clk 0:02:01]}  g6 {[%clk 0:01:25]} 21. Ke1 {[%clk 0:01:47]}  Rab8 {[%clk 0:01:20]} 22. b4 {[%clk 0:01:43]}  Nc3 {[%clk 0:01:10]} 23. Nc5 {[%clk 0:01:31]}  Ncd5 {[%clk 0:00:51]} 24. e4 {[%clk 0:01:30]}  Nb6 {[%clk 0:00:50]} 25. a4 {[%clk 0:01:30]}  e5 {[%clk 0:00:46]} 26. Ndb3 {[%clk 0:01:24]}  Nbd7 {[%clk 0:00:44]} 27. a5 {[%clk 0:01:20]}  b6 {[%clk 0:00:43]} 28. Na6 {[%clk 0:01:19]}  Rxc1+ {[%clk 0:00:41]} 29. Rxc1 {[%clk 0:01:18]}  Rd8 {[%clk 0:00:41]} 30. Nc7 {[%clk 0:01:09]}  bxa5 {[%clk 0:00:40]} 31. Nxa5 {[%clk 0:01:09]}  Nb6 {[%clk 0:00:38]} 32. Rc5 {[%clk 0:00:57]}  Rd4 {[%clk 0:00:32]} 33. Rxe5+ {[%clk 0:00:37]}  Kd6 {[%clk 0:00:22]} 34. Nxe8+ {[%clk 0:00:37]}  Kxe5 {[%clk 0:00:20]} 35. Nc6+ {[%clk 0:00:37]}  Ke6 {[%clk 0:00:20]} 36. Nxd4+ {[%clk 0:00:36]} 1-0


[Site "https://www.chess.com"]

[Event "Titled Tuesday Blitz May 2 Early 2023"]
[White "Jovic, Stanoje"]
[Black "Prohaszka, Peter"]
[WhiteFideId "905020"]
[BlackFideId "726265"]
[WhiteElo "2236"]
[BlackElo "2626"]
[Result "1-0"]
[Round "08"]
[TimeControl "180+2"]
[Date "2023.05.02"]
[WhiteClock "0:00:07"]
[BlackClock "0:00:02"]

1. c4 {[%clk 0:03:00]}  e6 {[%clk 0:02:54]} 2. g3 {[%clk 0:03:00]}  d5 {[%clk 0:02:55]} 3. Bg2 {[%clk 0:03:01]}  Nf6 {[%clk 0:02:54]} 4. Nf3 {[%clk 0:03:01]}  c5 {[%clk 0:02:53]} 5. cxd5 {[%clk 0:03:00]}  exd5 {[%clk 0:02:52]} 6. O-O {[%clk 0:03:00]}  Nc6 {[%clk 0:02:53]} 7. d4 {[%clk 0:03:00]}  Be7 {[%clk 0:02:46]} 8. dxc5 {[%clk 0:02:59]}  Bxc5 {[%clk 0:02:46]} 9. a3 {[%clk 0:02:59]}  a5 {[%clk 0:02:46]} 10. b3 {[%clk 0:02:59]}  O-O {[%clk 0:02:46]} 11. Bb2 {[%clk 0:03:00]}  d4 {[%clk 0:02:45]} 12. Nbd2 {[%clk 0:02:55]}  Re8 {[%clk 0:02:46]} 13. Rc1 {[%clk 0:02:54]}  Ba7 {[%clk 0:02:46]} 14. Re1 {[%clk 0:02:48]}  Bf5 {[%clk 0:02:42]} 15. Nc4 {[%clk 0:02:44]}  Rc8 {[%clk 0:02:39]} 16. h3 {[%clk 0:02:37]}  h6 {[%clk 0:02:37]} 17. g4 {[%clk 0:02:17]}  Bh7 {[%clk 0:02:35]} 18. e3 {[%clk 0:02:15]}  b5 {[%clk 0:02:25]} 19. exd4 {[%clk 0:01:24]}  Rxe1+ {[%clk 0:02:21]} 20. Nxe1 {[%clk 0:01:13]}  bxc4 {[%clk 0:02:21]} 21. d5 {[%clk 0:01:06]}  Ne7 {[%clk 0:01:56]} 22. Bxf6 {[%clk 0:01:04]}  gxf6 {[%clk 0:01:56]} 23. Rxc4 {[%clk 0:00:58]}  Bc5 {[%clk 0:01:42]} 24. Qf3 {[%clk 0:00:40]}  Ng6 {[%clk 0:01:13]} 25. Qc3 {[%clk 0:00:28]}  Nf4 {[%clk 0:01:13]} 26. Bf3 {[%clk 0:00:15]}  Qe7 {[%clk 0:00:46]} 27. b4 {[%clk 0:00:12]}  axb4 {[%clk 0:00:45]} 28. axb4 {[%clk 0:00:12]}  Re8 {[%clk 0:00:20]} 29. bxc5 {[%clk 0:00:09]}  Qxe1+ {[%clk 0:00:20]} 30. Qxe1 {[%clk 0:00:09]}  Rxe1+ {[%clk 0:00:21]} 31. Kh2 {[%clk 0:00:10]}  Bd3 {[%clk 0:00:13]} 32. Rc3 {[%clk 0:00:08]}  Be4 {[%clk 0:00:12]} 33. Bxe4 {[%clk 0:00:07]}  Rxe4 {[%clk 0:00:12]} 34. d6 {[%clk 0:00:07]}  Ne6 {[%clk 0:00:06]} 35. c6 {[%clk 0:00:07]}  Rd4 {[%clk 0:00:02]} 36. c7 {[%clk 0:00:07]}  Nxc7 {[%clk 0:00:02]} 37. dxc7 {[%clk 0:00:07]} 1-0


[Site "https://www.chess.com"]